[Event "FIDE World Rapid-ch Open 2018"]
[White "Miton, Kamil"]
[Black "Carlsson, Pontus"]
[Site "St. Petersburg"]
[Round "10.66"]
[Annotator "ChessBase"]
[Result "1/2-1/2"]
[Date "2018.12.27"]
[WhiteElo "2588"]
[BlackElo "2463"]
[PlyCount "199"]
[TimeControl "900+10"]

1. d4 {[%emt 0:0:0]} Nf6 {[%emt 0:0:3]} 2. c4 {[%emt 0:0:0]} e6 {[%emt 0:0:0]} 3. g3 {[%emt 0:0:0]} c5 {[%emt 0:0:4]} 4. Nf3 {[%emt 0:0:0]} cxd4 {[%emt 0:0:10]} 5. Nxd4 {[%emt 0:0:3]} Qc7 {[%emt 0:0:7]} 6. Bg2 {[%emt 0:0:0]} a6 {[%emt 0:0:8]} 7. 0-0 {[%emt 0:0:9]} Qxc4 {[%emt 0:0:18]} 8. Nc3 {[%emt 0:0:17]} Nc6 {[%emt 0:0:7]} 9. Nb3 {[%emt 0:0:13]} Qb4 {[%emt 0:0:0]} 10. a3 {[%emt 0:2:32]} Qb6 {[%emt 0:1:22]} 11. e4 {[%emt 0:1:8]} d6 {[%emt 0:0:40]} 12. Be3 {[%emt 0:0:6]} Qd8 {[%emt 0:0:4]} 13. f4 {[%emt 0:0:0]} Be7 {[%emt 0:0:52]} 14. g4 {[%emt 0:0:8]} h5 {[%emt 0:1:32]} 15. h3 {[%emt 0:0:6]} hxg4 {[%emt 0:0:4]} 16. hxg4 {[%emt 0:0:1]} Rh4 {[%emt 0:0:0]} 17. Bf3 {[%emt 0:0:15]} g5 {[%emt 0:0:51]} 18. Kg2 {[%emt 0:1:37]} gxf4 {[%emt 0:0:23]} 19. Bxf4 {[%emt 0:0:1]} Ne5 {[%emt 0:0:38]} 20. Bxe5 {[%emt 0:3:7]
} dxe5 {[%emt 0:0:2]} 21. Rh1 {[%emt 0:0:7]} Qxd1 {[%emt 0:0:0]} 22. Raxd1 {[%emt 0:0:1]} Rxh1 {[%emt 0:0:40]} 23. Rxh1 {[%emt 0:0:0]} Nd7 {[%emt 0:0:39]} 24. Na5 {[%emt 0:0:22]} b6 {[%emt 0:1:12]} 25. Rh8+ {[%emt 0:0:34]} Bf8 {[%emt 0:0:11]} 26. Nc4 {[%emt 0:0:2]} Ke7 {[%emt 0:0:0]} 27. g5 {[%emt 0:0:26]} b5 {[%emt 0:2:21]} 28. Na5 {[%emt 0:0:12]} Nc5 {[%emt 0:0:7]
} 29. Nc6+ {[%emt 0:0:53]} Kd6 {[%emt 0:0:9]} 30. Rxf8 {[%emt 0:0:10]
} Kxc6 {[%emt 0:0:2]} 31. Rxf7 {[%emt 0:0:6]} Bd7 {[%emt 0:0:0]} 32. g6 {[%emt 0:1:13]} Rg8 {[%emt 0:0:2]} 33. g7 {[%emt 0:0:2]} Be8 {[%emt 0:0:9]} 34. Re7 {[%emt 0:0:26]} Kd6 {[%emt 0:0:11]} 35. Ra7 {[%emt 0:0:2]
} Bd7 {[%emt 0:0:13]} 36. b4 {[%emt 0:0:9]} Rxg7+ {[%emt 0:0:0]} 37. Kf2 {[%emt 0:0:8]} Nb3 {[%emt 0:0:43]} 38. Rxa6+ {[%emt 0:0:3]} Ke7 {[%emt 0:0:8]} 39. Ra7 {[%emt 0:0:18]} Nd4 {[%emt 0:0:9]} 40. Be2 {[%emt 0:0:7]
} Kf8 {[%emt 0:0:38]} 41. Ra5 {[%emt 0:1:1]} Bc6 {[%emt 0:0:0]} 42. Bxb5 {[%emt 0:0:10]} Rf7+ {[%emt 0:0:11]} 43. Ke1 {[%emt 0:0:15]} Rf3 {[%emt 0:0:11]} 44. Bxc6 {[%emt 0:0:34]} Rxc3 {[%emt 0:0:4]} 45. Bb7 {[%emt 0:0:41]
} Ke7 {[%emt 0:0:17]} 46. a4 {[%emt 0:0:37]} Rc7 {[%emt 0:0:0]} 47. Ba6 {[%emt 0:0:27]} Nc2+ {[%emt 0:0:1]} 48. Kd2 {[%emt 0:0:2]} Nxb4 {[%emt 0:0:1]} 49. Bb5 {[%emt 0:0:5]} Rc2+ {[%emt 0:0:24]} 50. Kd1 {[%emt 0:0:1]
} Rc7 {[%emt 0:0:2]} 51. Ra8 {[%emt 0:0:4]} Na2 {[%emt 0:0:0]} 52. Kd2 {[%emt 0:0:15]} Nb4 {[%emt 0:0:15]} 53. a5 {[%emt 0:0:21]} Rc2+ {[%emt 0:0:6]} 54. Kd1 {[%emt 0:0:2]} Ra2 {[%emt 0:0:5]} 55. a6 {[%emt 0:0:0]} Kd6 {[%emt 0:0:19]} 56. Bc4 {[%emt 0:0:42]} Ra1+ {[%emt 0:0:9]} 57. Kd2 {[%emt 0:0:2]} Kc5 {[%emt 0:0:7]} 58. a7 {[%emt 0:1:54]} Nc6 {[%emt 0:0:0]} 59. Bxe6 {[%emt 0:0:18]} Rxa7 {[%emt 0:0:3]} 60. Rxa7 {[%emt 0:0:0]} Nxa7 {[%emt 0:0:1]} 61. Ke3 {[%emt 0:0:3]} Nb5 {[%emt 0:0:5]} 62. Bf5 {[%emt 0:0:5]} Kc4 {[%emt 0:0:15]} 63. Be6+ {[%emt 0:0:5]} Kc3 {[%emt 0:0:12]
} 64. Bd5 {[%emt 0:0:3]} Na3 {[%emt 0:0:4]} 65. Bc6 {[%emt 0:0:0]} Nc2+ {[%emt 0:0:1]} 66. Kf2 {[%emt 0:0:5]} Kd2 {[%emt 0:0:3]} 67. Bb7 {[%emt 0:0:4]} Nb4 {[%emt 0:0:4]} 68. Kf3 {[%emt 0:0:3]} Nd3 {[%emt 0:0:12]
} 69. Kg4 {[%emt 0:0:6]} Ke3 {[%emt 0:0:4]} 70. Kf5 {[%emt 0:0:0]} Kd4 {[%emt 0:0:2]} 71. Ba8 {[%emt 0:0:4]} Nf2 {[%emt 0:0:3]} 72. Bb7 {[%emt 0:0:3]} Nd1 {[%emt 0:0:1]} 73. Ba8 {[%emt 0:0:3]} Ne3+ {[%emt 0:0:1]
} 74. Ke6 {[%emt 0:0:2]} Nd1 {[%emt 0:0:13]} 75. Kf5 {[%emt 0:0:0]} Nb2 {[%emt 0:0:2]} 76. Bb7 {[%emt 0:0:4]} Nc4 {[%emt 0:0:2]} 77. Ba8 {[%emt 0:0:3]} Nd6+ {[%emt 0:0:3]} 78. Kg4 {[%emt 0:0:1]} Nxe4 {[%emt 0:0:3]
} 79. Kf3 {[%emt 0:0:2]} Nd2+ {[%emt 0:0:10]} 80. Ke2 {[%emt 0:0:1]
} Nb1 {[%emt 0:0:1]} 81. Bb7 {[%emt 0:0:2]} Nc3+ {[%emt 0:0:0]} 82. Kd2 {[%emt 0:0:8]} Nb5 {[%emt 0:0:3]} 83. Ba8 {[%emt 0:0:4]} Nc7 {[%emt 0:0:0]} 84. Bb7 {[%emt 0:0:2]} Ne6 {[%emt 0:0:1]} 85. Ba8 {[%emt 0:0:3]
} Nf4 {[%emt 0:0:5]} 86. Bb7 {[%emt 0:0:2]} Nd3 {[%emt 0:0:0]} 87. Ba8 {[%emt 0:0:3]} Nb2 {[%emt 0:0:3]} 88. Bb7 {[%emt 0:0:2]} Nc4+ {[%emt 0:0:1]} 89. Ke2 {[%emt 0:0:2]} Nb6 {[%emt 0:0:6]} 90. Bc6 {[%emt 0:0:2]
} Kc5 {[%emt 0:0:2]} 91. Bb7 {[%emt 0:0:5]} Kd6 {[%emt 0:0:0]} 92. Be4 {[%emt 0:0:4]} Ke6 {[%emt 0:0:2]} 93. Bb7 {[%emt 0:0:4]} Kf5 {[%emt 0:0:2]} 94. Bc6 {[%emt 0:0:3]} Kf4 {[%emt 0:0:3]} 95. Bb7 {[%emt 0:0:3]
} Na4 {[%emt 0:0:1]} 96. Ba8 {[%emt 0:0:6]} Nc3+ {[%emt 0:0:0]} 97. Kd2 {[%emt 0:0:4]} Ne4+ {[%emt 0:0:5]} 98. Ke2 {[%emt 0:0:1]} Ng3+ {[%emt 0:0:8]} 99. Kd2 {[%emt 0:0:4]} e4 {[%emt 0:0:24]} 100. Bxe4 1/2-1/2

[Event "FIDE World Rapid-ch Open 2018"]
[White "Sanikidze, Tornike"]
[Black "Indjic, Aleksandar"]
[Site "St. Petersburg"]
[Round "10.67"]
[Annotator "ChessBase"]
[Result "0-1"]
[Date "2018.12.27"]
[WhiteElo "2507"]
[BlackElo "2620"]
[PlyCount "130"]
[TimeControl "900+10"]

1. d4 {[%emt 0:0:0]} Nf6 {[%emt 0:0:0]} 2. c4 {[%emt 0:0:0]} c5 {[%emt 0:0:0]} 3. d5 {[%emt 0:0:0]} e6 {[%emt 0:0:1]} 4. Nf3 {[%emt 0:0:30]} d6 {[%emt 0:0:3]
} 5. Nc3 {[%emt 0:0:2]} exd5 {[%emt 0:0:5]} 6. cxd5 {[%emt 0:0:0]} g6 {[%emt 0:0:3]} 7. Bf4 {[%emt 0:0:4]} a6 {[%emt 0:0:5]} 8. a4 {[%emt 0:0:2]
} Bg7 {[%emt 0:0:5]} 9. h3 {[%emt 0:0:3]} 0-0 {[%emt 0:0:4]
} 10. e3 {[%emt 0:0:2]} Ne8 {[%emt 0:0:5]} 11. Be2 {[%emt 0:0:38]} Nd7 {[%emt 0:0:4]
} 12. 0-0 {[%emt 0:0:2]} Rb8 {[%emt 0:0:21]} 13. Re1 {[%emt 0:0:0]} Qe7 {[%emt 0:0:4]} 14. Bf1 {[%emt 0:0:27]} Nc7 {[%emt 0:0:13]} 15. Qd2 {[%emt 0:0:29]} h6 {[%emt 0:2:33]} 16. Bg3 {[%emt 0:0:12]} g5 {[%emt 0:0:0]} 17. e4 {[%emt 0:1:46]} f6 {[%emt 0:0:20]} 18. a5 {[%emt 0:0:59]} Ne5 {[%emt 0:0:4]} 19. Nxe5 {[%emt 0:0:2]} fxe5 {[%emt 0:0:6]} 20. b4 {[%emt 0:0:3]
} cxb4 {[%emt 0:0:13]} 21. Na4 {[%emt 0:0:2]} g4 {[%emt 0:0:0]} 22. h4 {[%emt 0:0:59]} Bd7 {[%emt 0:0:26]} 23. Nb6 {[%emt 0:1:3]} Bb5 {[%emt 0:0:3]} 24. Nc4 {[%emt 0:0:2]} Bxc4 {[%emt 0:0:12]} 25. Bxc4 {[%emt 0:0:2]
} Ne8 {[%emt 0:0:3]} 26. Rab1 {[%emt 0:0:29]} Nf6 {[%emt 0:0:0]} 27. Rxb4 {[%emt 0:0:3]} Rbc8 {[%emt 0:1:3]} 28. Be2 {[%emt 0:0:19]} Rc7 {[%emt 0:0:16]} 29. Reb1 {[%emt 0:0:26]} Rfc8 {[%emt 0:0:14]} 30. Qd1 {[%emt 0:0:31]
} h5 {[%emt 0:0:6]} 31. Qd2 {[%emt 0:0:53]} Kh7 {[%emt 0:0:0]} 32. Bd3 {[%emt 0:2:18]} Bh6 {[%emt 0:0:7]} 33. Qb2 {[%emt 0:0:1]} Rc1+ {[%emt 0:0:32]} 34. Rxc1 {[%emt 0:1:9]} Rxc1+ {[%emt 0:0:3]} 35. Kh2 {[%emt 0:0:1]} Rc7 {[%emt 0:0:2]} 36. Rb6 {[%emt 0:0:8]} Kg7 {[%emt 0:0:0]} 37. Bc2 {[%emt 0:1:40]} Bf4 {[%emt 0:0:39]} 38. Kg1 {[%emt 0:0:19]} Kf7 {[%emt 0:1:49]} 39. Kf1 {[%emt 0:1:4]} Kg7 {[%emt 0:3:56]} 40. Ke2 {[%emt 0:1:7]
} Kf7 {[%emt 0:0:3]} 41. Kd1 {[%emt 0:0:25]} Bh6 {[%emt 0:0:0]} 42. Qb4 {[%emt 0:0:20]} Bf8 {[%emt 0:0:22]} 43. Ba4 {[%emt 0:2:34]} Kg8 {[%emt 0:0:10]} 44. Bc2 {[%emt 0:0:7]} Qh7 {[%emt 0:0:9]} 45. Qb1 {[%emt 0:0:21]
} Rc4 {[%emt 0:2:26]} 46. Rxb7 {[%emt 0:0:10]} Qh6 {[%emt 0:0:0]} 47. Bd3 {[%emt 0:0:20]} Rd4 {[%emt 0:0:8]} 48. Ke2 {[%emt 0:0:1]} Nxe4 {[%emt 0:0:6]} 49. Bxe4 {[%emt 0:0:8]} Qd2+ {[%emt 0:0:3]} 50. Kf1 {[%emt 0:0:2]
} Rc4 {[%emt 0:0:1]} 51. Kg1 {[%emt 0:0:35]} Rc1+ {[%emt 0:0:0]} 52. Qxc1 {[%emt 0:0:2]} Qxc1+ {[%emt 0:0:1]} 53. Kh2 {[%emt 0:0:1]} Bh6 {[%emt 0:0:14]} 54. Rh7 {[%emt 0:0:28]} Bf4 {[%emt 0:0:3]} 55. Rxh5 {[%emt 0:0:3]
} Qe1 {[%emt 0:0:4]} 56. Bh7+ {[%emt 0:0:16]} Kg7 {[%emt 0:0:0]} 57. Bxf4 {[%emt 0:0:12]} exf4 {[%emt 0:0:4]} 58. Bf5 {[%emt 0:0:1]} g3+ {[%emt 0:0:32]} 59. fxg3 {[%emt 0:0:7]} Qxg3+ {[%emt 0:0:3]} 60. Kh1 {[%emt 0:0:1]
} Qe1+ {[%emt 0:0:15]} 61. Kh2 {[%emt 0:0:2]} Qxa5 {[%emt 0:0:0]} 62. Be4 {[%emt 0:0:40]} Qe1 {[%emt 0:0:33]} 63. Rg5+ {[%emt 0:0:10]} Kh6 {[%emt 0:0:3]} 64. Rg6+ {[%emt 0:0:10]} Kh5 {[%emt 0:0:1]} 65. Rg5+ {[%emt 0:0:11]
} Kxh4 {[%emt 0:0:8]} 0-1

[Event "FIDE World Rapid-ch Open 2018"]
[White "Lomasov, Semyon"]
[Black "Huzman, Alexander"]
[Site "St. Petersburg"]
[Round "10.68"]
[Annotator "ChessBase"]
[Result "1-0"]
[Date "2018.12.27"]
[WhiteElo "2553"]
[BlackElo "2580"]
[PlyCount "73"]
[TimeControl "900+10"]

1. e4 {[%emt 0:0:0]} e6 {[%emt 0:0:0]} 2. d4 {[%emt 0:0:0]} d5 {[%emt 0:0:0]} 3. Nc3 {[%emt 0:0:0]} dxe4 {[%emt 0:0:0]} 4. Nxe4 {[%emt 0:0:0]} Nd7 {[%emt 0:0:0]} 5. Nf3 {[%emt 0:0:0]} Ngf6 {[%emt 0:0:0]} 6. Nxf6+ {[%emt 0:0:1]
} Nxf6 {[%emt 0:0:0]} 7. Be3 {[%emt 0:0:2]} Bd6 {[%emt 0:0:0]} 8. Bd3 {[%emt 0:0:3]} a6 {[%emt 0:1:1]} 9. Qe2 {[%emt 0:0:47]} b5 {[%emt 0:0:51]
} 10. 0-0-0 {[%emt 0:0:8]} Bb7 {[%emt 0:1:1]} 11. Kb1 {[%emt 0:0:8]
} 0-0 {[%emt 0:0:20]} 12. Bg5 {[%emt 0:0:3]} h6 {[%emt 0:0:0]} 13. h4 {[%emt 0:0:5]} Bxf3 {[%emt 0:0:32]} 14. Qxf3 {[%emt 0:0:4]} Be7 {[%emt 0:0:1]} 15. g4 {[%emt 0:2:5]} Qd5 {[%emt 0:0:13]} 16. Qh3 {[%emt 0:0:1]
} Rad8 {[%emt 0:0:41]} 17. c3 {[%emt 0:0:45]} c5 {[%emt 0:0:0]} 18. Bxf6 {[%emt 0:0:13]} gxf6 {[%emt 0:0:20]} 19. Qe3 {[%emt 0:2:49]} Kg7 {[%emt 0:0:4]} 20. Be4 {[%emt 0:0:4]} cxd4 {[%emt 0:0:39]} 21. cxd4 {[%emt 0:0:4]
} Qd6 {[%emt 0:1:6]} 22. d5 {[%emt 0:0:21]} Qc5 {[%emt 0:0:0]} 23. Qf3 {[%emt 0:0:21]} Rd6 {[%emt 0:1:17]} 24. Rc1 {[%emt 0:1:18]} Qb6 {[%emt 0:0:2]} 25. g5 {[%emt 0:3:7]} fxg5 {[%emt 0:0:36]} 26. hxg5 {[%emt 0:0:1]
} Bxg5 {[%emt 0:0:1]} 27. Rxh6 {[%emt 0:3:40]} Kxh6 {[%emt 0:0:0]} 28. Rh1+ {[%emt 0:0:8]} Kg7 {[%emt 0:0:1]} 29. Qc3+ {[%emt 0:2:19]
} f6 {[%emt 0:0:47]} 30. Rh7+ {[%emt 0:0:8]} Kg8 {[%emt 0:0:2]} 31. Rh8+ {[%emt 0:0:2]
} Kg7 {[%emt 0:0:9]} 32. Rh7+ {[%emt 0:0:2]} Kg8 {[%emt 0:0:0]} 33. Qh3 {[%emt 0:0:53]} f5 {[%emt 0:0:27]} 34. Qh5 {[%emt 0:0:26]} exd5 {[%emt 0:1:23]} 35. Rh8+ {[%emt 0:0:2]} Kg7 {[%emt 0:0:1]} 36. Qh7+ {[%emt 0:0:3]
} Kf6 {[%emt 0:0:2]} 37. Qxf5+ {[%emt 0:0:4]} 1-0

[Event "FIDE World Rapid-ch Open 2018"]
[White "Gasanov, Eldar"]
[Black "Usmanov, Vasily"]
[Site "St. Petersburg"]
[Round "10.69"]
[Annotator "ChessBase"]
[Result "1-0"]
[Date "2018.12.27"]
[WhiteElo "2499"]
[BlackElo "2450"]
[PlyCount "143"]
[TimeControl "900+10"]

1. Nf3 {[%emt 0:0:0]} d5 {[%emt 0:0:0]} 2. e3 {[%emt 0:0:3]} Bg4 {[%emt 0:0:0]
} 3. c4 {[%emt 0:0:8]} dxc4 {[%emt 0:0:0]} 4. Bxc4 {[%emt 0:0:0]} e6 {[%emt 0:0:0]} 5. d4 {[%emt 0:1:44]} Nc6 {[%emt 0:0:13]} 6. h3 {[%emt 0:0:55]
} Bh5 {[%emt 0:0:6]} 7. Bb5 {[%emt 0:1:14]} Bb4+ {[%emt 0:0:0]} 8. Nc3 {[%emt 0:0:9]} Nge7 {[%emt 0:0:7]} 9. a3 {[%emt 0:0:41]} Bd6 {[%emt 0:0:2]
} 10. Ne4 {[%emt 0:0:47]} a6 {[%emt 0:0:6]} 11. Be2 {[%emt 0:0:0]} 0-0 {[%emt 0:0:7]} 12. 0-0 {[%emt 0:0:25]} Bg6 {[%emt 0:0:24]} 13. Nxd6 {[%emt 0:0:46]} cxd6 {[%emt 0:0:2]} 14. Bd2 {[%emt 0:0:16]} Qd7 {[%emt 0:0:18]
} 15. Qb3 {[%emt 0:0:22]} Rfc8 {[%emt 0:0:10]} 16. Rfc1 {[%emt 0:0:5]
} h6 {[%emt 0:0:12]} 17. Ne1 {[%emt 0:0:29]} Nd5 {[%emt 0:0:0]} 18. Nd3 {[%emt 0:0:27]} Nce7 {[%emt 0:0:53]} 19. f3 {[%emt 0:0:21]} f5 {[%emt 0:0:3]} 20. a4 {[%emt 0:1:9]} Rxc1+ {[%emt 0:0:2]} 21. Rxc1 {[%emt 0:0:1]
} Rc8 {[%emt 0:0:3]} 22. Kf2 {[%emt 0:1:6]} Rxc1 {[%emt 0:0:0]} 23. Bxc1 {[%emt 0:0:18]} Be8 {[%emt 0:0:21]} 24. Bd2 {[%emt 0:0:42]} Qxa4 {[%emt 0:0:49]} 25. Qxb7 {[%emt 0:0:12]} Qc2 {[%emt 0:0:2]} 26. Ke1 {[%emt 0:3:41]
} Bb5 {[%emt 0:0:30]} 27. Nc1 {[%emt 0:0:21]} Qc6 {[%emt 0:0:0]} 28. Qxc6 {[%emt 0:0:14]} Nxc6 {[%emt 0:0:3]} 29. Bd1 {[%emt 0:0:36]} Nb6 {[%emt 0:0:47]} 30. Kf2 {[%emt 0:0:13]} Kf7 {[%emt 0:1:13]} 31. g4 {[%emt 0:0:11]
} Nc4 {[%emt 0:1:3]} 32. Bc3 {[%emt 0:0:6]} d5 {[%emt 0:0:0]} 33. gxf5 {[%emt 0:0:13]} exf5 {[%emt 0:0:2]} 34. Nd3 {[%emt 0:0:9]} g5 {[%emt 0:0:19]} 35. b3 {[%emt 0:0:7]} Nd6 {[%emt 0:0:13]} 36. Nc5 {[%emt 0:0:22]
} a5 {[%emt 0:0:56]} 37. Bc2 {[%emt 0:0:17]} Ke7 {[%emt 0:0:0]} 38. Kg3 {[%emt 0:0:12]} Kf6 {[%emt 0:1:8]} 39. e4 {[%emt 0:0:27]} fxe4 {[%emt 0:0:11]} 40. fxe4 {[%emt 0:0:3]} dxe4 {[%emt 0:0:9]} 41. d5+ {[%emt 0:0:18]
} Ne5 {[%emt 0:0:3]} 42. Nxe4+ {[%emt 0:0:37]} Nxe4+ {[%emt 0:0:0]} 43. Bxe4 {[%emt 0:0:1]} a4 {[%emt 0:0:4]} 44. b4 {[%emt 0:0:33]} a3 {[%emt 0:0:16]} 45. h4 {[%emt 0:0:30]} a2 {[%emt 0:0:24]} 46. Bc2 {[%emt 0:0:12]
} Bc4 {[%emt 0:0:13]} 47. Be4 {[%emt 0:0:15]} Bb5 {[%emt 0:0:0]} 48. hxg5+ {[%emt 0:0:4]} hxg5 {[%emt 0:0:1]} 49. Kf2 {[%emt 0:0:6]} Bd7 {[%emt 0:0:20]} 50. Ke3 {[%emt 0:0:2]} Bb5 {[%emt 0:0:28]} 51. Bc2 {[%emt 0:0:6]
} Bd7 {[%emt 0:1:17]} 52. b5 {[%emt 0:0:15]} Bxb5 {[%emt 0:0:0]} 53. Ke4 {[%emt 0:0:4]} g4 {[%emt 0:0:2]} 54. Kf4 {[%emt 0:0:32]} Bc4 {[%emt 0:0:8]} 55. Bxe5+ {[%emt 0:0:6]} Ke7 {[%emt 0:0:13]} 56. Be4 {[%emt 0:0:17]
} g3 {[%emt 0:0:18]} 57. Ke3 {[%emt 0:0:19]} Bf1 {[%emt 0:0:0]} 58. Bf5 {[%emt 0:0:17]} g2 {[%emt 0:0:27]} 59. Kf2 {[%emt 0:0:16]} Bc4 {[%emt 0:0:44]} 60. d6+ {[%emt 0:0:4]} Kf7 {[%emt 0:0:6]} 61. d7 {[%emt 0:0:0]} Ke7 {[%emt 0:0:23]} 62. Bf6+ {[%emt 0:0:12]} Kxf6 {[%emt 0:0:2]} 63. d8=Q+ {[%emt 0:0:3]} Kxf5 {[%emt 0:0:1]} 64. Qa5+ {[%emt 0:0:9]} Ke4 {[%emt 0:0:10]} 65. Kxg2 {[%emt 0:0:7]} Kd3 {[%emt 0:0:3]} 66. Qe5 {[%emt 0:0:16]
} Kc2 {[%emt 0:0:2]} 67. Qa1 {[%emt 0:0:3]} Bg8 {[%emt 0:0:0]} 68. Kf2 {[%emt 0:0:5]} Bf7 {[%emt 0:0:1]} 69. Ke2 {[%emt 0:0:7]} Bc4+ {[%emt 0:0:2]} 70. Ke3 {[%emt 0:0:2]} Bg8 {[%emt 0:0:4]} 71. Kd4 {[%emt 0:0:6]
} Kd2 {[%emt 0:0:32]} 72. Qb2+ {[%emt 0:0:8]} 1-0

[Event "FIDE World Rapid-ch Open 2018"]
[White "Popov, Ivan"]
[Black "Christiansen, Johan-Sebastian"]
[Site "St. Petersburg"]
[Round "10.70"]
[Annotator "ChessBase"]
[Result "1-0"]
[Date "2018.12.27"]
[WhiteElo "2592"]
[BlackElo "2555"]
[PlyCount "79"]
[TimeControl "900+10"]

1. e4 {[%emt 0:0:0]} e6 {[%emt 0:0:0]} 2. d4 {[%emt 0:0:0]} d5 {[%emt 0:0:0]} 3. Nd2 {[%emt 0:0:0]} c5 {[%emt 0:0:0]} 4. Ngf3 {[%emt 0:0:0]} cxd4 {[%emt 0:0:0]} 5. Nxd4 {[%emt 0:0:0]} Nf6 {[%emt 0:0:0]} 6. exd5 {[%emt 0:0:1]
} Qxd5 {[%emt 0:0:4]} 7. Nb5 {[%emt 0:0:2]} Na6 {[%emt 0:0:0]} 8. Nc3 {[%emt 0:0:14]} Qd6 {[%emt 0:0:24]} 9. a3 {[%emt 0:0:9]} Be7 {[%emt 0:0:6]
} 10. Qf3 {[%emt 0:0:24]} 0-0 {[%emt 0:5:33]} 11. Nc4 {[%emt 0:0:0]} Qd8 {[%emt 0:0:8]} 12. Bf4 {[%emt 0:0:48]} Nc7 {[%emt 0:0:1]} 13. Bd3 {[%emt 0:1:14]} Ncd5 {[%emt 0:0:3]} 14. Be5 {[%emt 0:2:54]} Nd7 {[%emt 0:2:9]
} 15. Bd4 {[%emt 0:1:54]} Nxc3 {[%emt 0:0:40]} 16. Bxc3 {[%emt 0:0:8]
} Nc5 {[%emt 0:1:36]} 17. 0-0-0 {[%emt 0:1:20]} Nxd3+ {[%emt 0:0:0]} 18. Rxd3 {[%emt 0:0:2]} Qc7 {[%emt 0:0:4]} 19. Ne3 {[%emt 0:2:29]} f6 {[%emt 0:1:28]} 20. Rhd1 {[%emt 0:0:9]} Rb8 {[%emt 0:1:51]} 21. Qe4 {[%emt 0:0:57]
} b6 {[%emt 0:0:41]} 22. Bb4 {[%emt 0:1:42]} Re8 {[%emt 0:0:0]} 23. Bd6 {[%emt 0:1:6]} Bxd6 {[%emt 0:0:1]} 24. Rxd6 {[%emt 0:0:1]} Bb7 {[%emt 0:1:7]} 25. Qg4 {[%emt 0:0:13]} Qf7 {[%emt 0:0:2]} 26. Qa4 {[%emt 0:1:5]
} a6 {[%emt 0:1:57]} 27. Rxb6 {[%emt 0:0:8]} Rbd8 {[%emt 0:0:0]} 28. Rbd6 {[%emt 0:0:19]} Rxd6 {[%emt 0:0:8]} 29. Rxd6 {[%emt 0:0:1]} Bc8 {[%emt 0:0:10]} 30. Qc4 {[%emt 0:0:39]} h6 {[%emt 0:0:11]} 31. Rc6 {[%emt 0:0:34]
} Bd7 {[%emt 0:0:1]} 32. Rxa6 {[%emt 0:0:5]} Rc8 {[%emt 0:0:0]} 33. Qd3 {[%emt 0:0:9]} Bc6 {[%emt 0:0:21]} 34. Qd6 {[%emt 0:0:20]} Qe8 {[%emt 0:0:16]} 35. Ra7 {[%emt 0:0:30]} Kh7 {[%emt 0:0:1]} 36. Re7 {[%emt 0:0:21]
} Qf8 {[%emt 0:0:21]} 37. Qxe6 {[%emt 0:0:6]} Ba4 {[%emt 0:0:0]} 38. Qf7 {[%emt 0:0:41]} Qh8 {[%emt 0:0:14]} 39. Qxf6 {[%emt 0:0:6]} Rc5 {[%emt 0:0:10]} 40. Qd4 {[%emt 0:0:11]} 1-0

[Event "FIDE World Rapid-ch Open 2018"]
[White "Golubov, Saveliy"]
[Black "Fakhrutdinov, Timur"]
[Site "St. Petersburg"]
[Round "10.71"]
[Annotator "ChessBase"]
[Result "1/2-1/2"]
[Date "2018.12.27"]
[WhiteElo "2482"]
[BlackElo "2481"]
[PlyCount "143"]
[TimeControl "900+10"]

1. e4 e5 2. Nf3 Nc6 3. Nc3 Nf6 4. a3 d5 5. exd5 Nxd5 6. Bb5 Nxc3 7. bxc3 Bd6 8. 0-0 0-0 9. Re1 Qf6 10. d3 Bg4 11. h3 Bxf3 12. Qxf3 Qxf3 13. gxf3 Ne7 14. f4 exf4 15. Bxf4 Bxf4 16. Rxe7 Bd6 17. Re2 c6 18. Bc4 Rfe8 19. Rxe8+ Rxe8 20. d4 Bf4 21. Rb1 b6 22. Rd1 g6 23. a4 Kg7 24. Kg2 Re7 25. Kf3 Bd6 26. Ra1 Bc7 27. Ba6 f5 28. a5 bxa5 29. Bb7 c5 30. Bd5 Bb6 31. dxc5 Bxc5 32. Rxa5 Bb6 33. Ra1 g5 34. c4 h5 35. Ra6 Rc7 36. Ra1 Kf6 37. Kg2 Re7 38. Kf1 g4 39. hxg4 hxg4 40. Rb1 f4 41. c5 Bxc5 42. Rb8 Rh7 43. Rc8 Bb6 44. c4 Ke5 45. Re8+ Kd6 46. Re4 f3 47. Rxg4 Rh1+ 48. Rg1 Rh2 49. Rg8 Rxf2+ 50. Ke1 Re2+ 51. Kd1 Rf2 52. Ke1 Re2+ 53. Kd1 Re3 54. Rf8 Kc5 55. Rxf3 Re5 56. Kc2 Re2+ 57. Kb3 Kd4 58. Rf4+ Ke5 59. Rf8 Kd6 60. Rf6+ Kc5 61. Rc6+ Kd4 62. Re6 Rh2 63. Re4+ Kd3 64. Rg4 Rf2 65. Be4+ Ke3 66. Bc2 Kd2 67. Be4 Ke3 68. Bc2 Kd2 69. Bg6 Rf3+ 70. Kb4 Be3 71. Kb5 Rf8 72. c5 1/2-1/2

[Event "FIDE World Rapid-ch Open 2018"]
[White "Geller, Jakov"]
[Black "Anikonov, Dmitry"]
[Site "St. Petersburg"]
[Round "10.72"]
[Annotator "ChessBase"]
[Result "1/2-1/2"]
[Date "2018.12.27"]
[WhiteElo "2518"]
[BlackElo "2371"]
[PlyCount "123"]
[TimeControl "900+10"]

1. e4 {[%emt 0:0:0]} d6 {[%emt 0:0:0]} 2. d4 {[%emt 0:0:0]} Nf6 {[%emt 0:0:0]} 3. Nc3 {[%emt 0:0:0]} e5 {[%emt 0:0:0]} 4. Nf3 {[%emt 0:0:0]} exd4 {[%emt 0:0:0]} 5. Nxd4 {[%emt 0:0:4]} Be7 {[%emt 0:0:0]} 6. g3 {[%emt 0:0:17]
} d5 {[%emt 0:0:0]} 7. e5 {[%emt 0:0:31]} Ng4 {[%emt 0:0:0]} 8. e6 {[%emt 0:0:57]} Nf6 {[%emt 0:0:1]} 9. exf7+ {[%emt 0:0:8]} Kxf7 {[%emt 0:0:2]
} 10. Bg2 {[%emt 0:0:10]} Re8 {[%emt 0:0:3]} 11. 0-0 {[%emt 0:0:0]} c6 {[%emt 0:0:2]} 12. Re1 {[%emt 0:0:23]} Na6 {[%emt 0:0:2]} 13. Bf4 {[%emt 0:1:19]} Nc7 {[%emt 0:0:20]} 14. Qd3 {[%emt 0:0:19]} Kg8 {[%emt 0:2:2]
} 15. h3 {[%emt 0:0:29]} Bd6 {[%emt 0:1:11]} 16. Rxe8+ {[%emt 0:0:57]
} Ncxe8 {[%emt 0:0:7]} 17. Bg5 {[%emt 0:0:21]} Bd7 {[%emt 0:0:0]} 18. Re1 {[%emt 0:0:21]} Nc7 {[%emt 0:1:11]} 19. Nd1 {[%emt 0:3:20]} h6 {[%emt 0:0:35]} 20. Bd2 {[%emt 0:0:15]} Qc8 {[%emt 0:0:11]} 21. Bxh6 {[%emt 0:0:39]
} c5 {[%emt 0:0:42]} 22. Qg6 {[%emt 0:0:59]} Qf8 {[%emt 0:0:0]} 23. Nb3 {[%emt 0:1:16]} Be8 {[%emt 0:0:50]} 24. Qg5 {[%emt 0:0:28]} Kh7 {[%emt 0:0:55]} 25. Bxg7 {[%emt 0:0:54]} Qxg7 {[%emt 0:0:0]} 26. Qd2 {[%emt 0:0:9]
} Bg6 {[%emt 0:1:7]} 27. Nc3 {[%emt 0:1:22]} Rd8 {[%emt 0:0:0]} 28. Na5 {[%emt 0:0:16]} b6 {[%emt 0:2:7]} 29. Nc6 {[%emt 0:1:18]} Re8 {[%emt 0:0:37]} 30. Rxe8 {[%emt 0:0:49]} Bxe8 {[%emt 0:0:1]} 31. Nxa7 {[%emt 0:0:2]
} Be5 {[%emt 0:1:22]} 32. Nc8 {[%emt 0:0:45]} b5 {[%emt 0:0:0]} 33. Qe2 {[%emt 0:0:28]} Bxc3 {[%emt 0:1:1]} 34. bxc3 {[%emt 0:0:1]} Qd7 {[%emt 0:0:19]} 35. Ne7 {[%emt 0:0:30]} Bg6 {[%emt 0:0:47]} 36. Qe5 {[%emt 0:0:25]
} Nce8 {[%emt 0:0:24]} 37. Nxd5 {[%emt 0:0:16]} Nxd5 {[%emt 0:0:0]} 38. Bxd5 {[%emt 0:0:5]} Qd6 {[%emt 0:0:3]} 39. Qxd6 {[%emt 0:0:39]
} Nxd6 {[%emt 0:0:1]} 40. a3 {[%emt 0:0:7]} Bxc2 {[%emt 0:0:8]} 41. f3 {[%emt 0:0:4]
} Kg7 {[%emt 0:0:36]} 42. Kf2 {[%emt 0:0:1]} Kf6 {[%emt 0:0:0]} 43. h4 {[%emt 0:0:11]} Bd3 {[%emt 0:0:22]} 44. h5 {[%emt 0:0:26]} Bc4 {[%emt 0:0:2]
} 45. Bc6 {[%emt 0:0:4]} Bf7 {[%emt 0:0:21]} 46. g4 {[%emt 0:0:0]} Nc4 {[%emt 0:0:8]} 47. Bxb5 {[%emt 0:0:8]} Nxa3 {[%emt 0:0:1]} 48. Ba6 {[%emt 0:0:25]} Nb1 {[%emt 0:0:6]} 49. f4 {[%emt 0:0:12]} Nxc3 {[%emt 0:0:3]
} 50. Bd3 {[%emt 0:0:2]} Kg7 {[%emt 0:0:11]} 51. Kg3 {[%emt 0:0:0]} c4 {[%emt 0:0:1]} 52. Bc2 {[%emt 0:0:7]} Ne2+ {[%emt 0:0:3]} 53. Kf2 {[%emt 0:0:14]} Nxf4 {[%emt 0:0:32]} 54. Ke3 {[%emt 0:0:0]} Nd5+ {[%emt 0:0:16]
} 55. Kd4 {[%emt 0:0:2]} Nb4 {[%emt 0:0:6]} 56. Be4 {[%emt 0:0:0]} Kh6 {[%emt 0:0:6]} 57. Bf3 {[%emt 0:0:21]} Nc2+ {[%emt 0:0:11]} 58. Kc3 {[%emt 0:0:2]} Ne3 {[%emt 0:0:11]} 59. Kd4 {[%emt 0:0:17]} Nc2+ {[%emt 0:0:10]
} 60. Kc3 {[%emt 0:0:1]} Ne3 {[%emt 0:0:1]} 61. Kd4 {[%emt 0:0:0]} Nc2+ {[%emt 0:0:27]} 62. Kc3 1/2-1/2